[Event "44th Chess Olympiad Women 2022"]
[Site "Chennai"]
[Date "2022.07.29"]
[Round "1.9"]
[White "Gaboyan, Susanna"]
[Black "Otisitswe Ruth"]
[Result "1-0"]
[WhiteElo "2270"]
[BlackElo "1552"]
[Annotator "ChessBase"]
[PlyCount "105"]
[EventDate "2022.??.??"]
[TimeControl "60"]

1. Nf3 {[%emt 0:00:06]} Nc6 {[%emt 0:00:12]} 2. g3 {[%emt 0:00:16]} e5 {
[%emt 0:00:23]} 3. d3 {[%emt 0:00:11]} d5 {[%emt 0:00:47]} 4. Bg2 {[%emt 0:00:
00]} Be7 {[%emt 0:00:42]} 5. O-O {[%emt 0:00:09]} Nf6 {[%emt 0:01:31]} 6. Nbd2
{[%emt 0:00:14]} O-O {[%emt 0:00:32]} 7. e4 {[%emt 0:00:08]} dxe4 {[%emt 0:00:
00]} 8. dxe4 {[%emt 0:00:07]} Be6 {[%emt 0:04:04]} 9. Qe2 {[%emt 0:00:54]} Qd7
{[%emt 0:05:49]} 10. Nc4 {[%emt 0:01:23]} Nd4 {[%emt 0:01:03]} 11. Nxd4 {
[%emt 0:00:15]} exd4 {[%emt 0:00:36]} 12. Ne5 {[%emt 0:01:06]} Qa4 {[%emt 0:00:
00]} 13. f4 {[%emt 0:02:17]} Qa5 {[%emt 0:07:42]} 14. Nd3 {[%emt 0:05:49]} Bc4
{[%emt 0:10:04]} 15. Bd2 {[%emt 0:05:45]} Qb6 {[%emt 0:05:25]} 16. b3 {[%emt 0:
00:00]} Ba6 {[%emt 0:01:02]} 17. e5 {[%emt 0:00:36]} Nd7 {[%emt 0:00:24]} 18.
a4 {[%emt 0:06:03]} Nc5 {[%emt 0:11:11]} 19. f5 {[%emt 0:26:14]} Rfe8 {[%emt 0:
00:00]} 20. Qg4 {[%emt 0:08:47]} Nxd3 {[%emt 0:03:08]} 21. cxd3 {[%emt 0:10:31]
} Bxd3 {[%emt 0:03:30]} 22. Bd5 {[%emt 0:11:16]} Be2 {[%emt 0:05:03]} 23. Qf4 {
[%emt 0:03:06]} d3+ {[%emt 0:08:36]} 24. Kh1 {[%emt 0:01:00]} Rad8 {[%emt 0:00:
00]} 25. Qc4 {[%emt 0:02:13]} Rxd5 {[%emt 0:05:40]} 26. Qxd5 {[%emt 0:00:07]}
Bxf1 {[%emt 0:00:12]} 27. Rxf1 {[%emt 0:00:07]} Qc6 {[%emt 0:00:11]} 28. Qxc6 {
[%emt 0:01:45]} bxc6 {[%emt 0:00:05]} 29. Rc1 {[%emt 0:00:21]} c5 {[%emt 0:00:
00]} 30. Kg2 {[%emt 0:02:08]} Bf8 {[%emt 0:01:38]} 31. Bf4 {[%emt 0:00:02]} f6
{[%emt 0:00:49]} 32. e6 {[%emt 0:00:16]} Bd6 {[%emt 0:00:05]} 33. Bxd6 {
[%emt 0:03:36]} cxd6 {[%emt 0:00:06]} 34. Rd1 {[%emt 0:00:03]} Kf8 {[%emt 0:00:
00]} 35. Rxd3 {[%emt 0:00:14]} Ke7 {[%emt 0:00:11]} 36. Kf3 {[%emt 0:00:04]} g6
{[%emt 0:00:25]} 37. g4 {[%emt 0:00:21]} g5 {[%emt 0:00:57]} 38. Ke4 {[%emt 0:
00:00]} Rb8 {[%emt 0:00:54]} 39. Rh3 {[%emt 0:01:07]} h5 {[%emt 0:01:14]} 40.
gxh5 {[%emt 0:03:18]} Rb4+ {[%emt 0:00:33]} 41. Kd5 {[%emt 0:34:35]} Rb8 {
[%emt 0:30:34]} 42. h6 {[%emt 0:00:15]} Rh8 {[%emt 0:00:17]} 43. h7 {[%emt 0:
00:00]} g4 {[%emt 0:00:22]} 44. Rh6 {[%emt 0:00:12]} a5 {[%emt 0:00:13]} 45.
Rh5 {[%emt 0:00:12]} c4 {[%emt 0:00:39]} 46. bxc4 {[%emt 0:00:06]} Ke8 {
[%emt 0:00:13]} 47. Kxd6 {[%emt 0:00:05]} Kd8 {[%emt 0:00:13]} 48. c5 {[%emt 0:
00:00]} Ke8 {[%emt 0:00:09]} 49. c6 {[%emt 0:00:05]} Kd8 {[%emt 0:00:06]} 50.
e7+ {[%emt 0:00:11]} Ke8 {[%emt 0:00:12]} 51. Ke6 {[%emt 0:00:17]} g3 {[%emt 0:
00:00]} 52. c7 {[%emt 0:00:06]} g2 {[%emt 0:00:04]} 53. c8=R# {[%emt 0:00:06]}
1-0

[Event "44th Chess Olympiad Women 2022"]
[Site "Chennai"]
[Date "2022.07.29"]
[Round "1.9"]
[White "Sargsyan, Anna M."]
[Black "Marape, Naledi"]
[Result "1-0"]
[WhiteElo "2378"]
[BlackElo "1714"]
[Annotator "TA"]
[PlyCount "55"]
[EventDate "2022.??.??"]
[TimeControl "60"]

{[%evp 9,55,-5,55,-8,31,28,26,24,163,104,198,196,205,212,211,164,181,165,155,
166,180,180,180,158,268,263,255,246,280,167,158,116,184,176,312,293,811,808,
803,802,795,788,787,785,1835,1804,1702,1677]} 1. d4 {[%emt 0:00:04]} Nf6 {
[%emt 0:00:07]} 2. Bf4 {[%emt 0:00:08]} g6 {[%emt 0:00:07]} 3. Nc3 {[%emt 0:00:
00]} Bg7 {[%emt 0:00:09]} 4. Qd2 {[%emt 0:00:13]} O-O {[%emt 0:02:10]} 5. Bh6 {
[%emt 0:00:06]} d6 {[%emt 0:00:21]} (5... Bxh6 $11 6. Qxh6 d5) 6. h4 {[%emt 0:
00:00] A45: Trompowsky Attack.} (6. O-O-O $14) 6... Bxh6 {[%emt 0:01:49]} 7.
Qxh6 {[%emt 0:00:08][%cal Yh4h5]} Ng4 {[%emt 0:00:03]} 8. Qd2 {[%emt 0:00:39] 
[#] White has an edge.} Kg7 $146 {[%emt 0:02:32] [#]} (8... c5 $11 {and Black
stays safe.}) ({Predecessor:} 8... e5 9. d5 f5 10. f3 Nf6 11. e3 a5 12. O-O-O
Na6 13. Be2 Nc5 14. Nh3 Qe7 {½-½ (23) Sikora,J (2209)-Musil,V (1951) Ceske
Budejovice 2018}) 9. h5 {[%emt 0:00:13]} (9. f3 $1 $18 {[%cal Rf3g4]}) 9... Rh8
{[%emt 0:01:01]} (9... e5 $16) 10. e4 {[%emt 0:01:17][%cal Ye2e4,Ye4e5]} Nd7 {
[%emt 0:18:00]} 11. h6+ {[%emt 0:04:00]} Kf8 {[%emt 0:01:43]} 12. f3 {[%emt 0:
00:04]} Ngf6 {[%emt 0:00:28]} 13. e5 {[%emt 0:00:06]} Ne8 {[%emt 0:00:00]} 14.
e6 {[%emt 0:01:37] White is much more active.} Ndf6 {[%emt 0:00:17]} 15. exf7 {
[%emt 0:00:20]} Kxf7 {[%emt 0:00:06]} 16. O-O-O $36 {[%emt 0:00:25] White has
strong initiative.} d5 {[%emt 0:00:19]} (16... c6 $16 17. Nge2 Nc7) 17. g4 $18
{[%emt 0:00:11]} Rf8 {[%emt 0:01:15]} 18. Nh3 {[%emt 0:00:00]} c6 {[%emt 0:04:
26]} 19. Nf4 {[%emt 0:01:22]} (19. Re1 $142) 19... Qd6 {[%emt 0:01:34]} 20. Re1
{[%emt 0:02:55] Strongly threatening Bd3.} Nc7 {[%emt 0:00:23] [#]} (20... Kg8
$16) 21. Bd3 $1 {[%emt 0:02:33] aiming for Nce2.} Ne6 {[%emt 0:03:14]} (21...
Kg8 $142) 22. Nce2 {[%emt 0:04:29]} c5 $2 {[%emt 0:02:36]} (22... Kg8 23. Bxg6
Nxf4 24. Nxf4 Nxg4) 23. Nxe6 {[%emt 0:00:00] White is clearly winning.} Bxe6 {
[%emt 0:01:50]} 24. dxc5 {[%emt 0:00:05]} Qxc5 {[%emt 0:00:23]} 25. Nf4 {
[%emt 0:00:12]} Bd7 {[%emt 0:03:37]} 26. g5 {[%emt 0:00:06]} Ne8 {[%emt 0:00:
24] [#]} 27. Nxg6 $1 {[%emt 0:05:25]} hxg6 {[%emt 0:01:50]} (27... e5 28. Nxe5+
) 28. Qf4+ {[%emt 0:00:04] Skewer. Weighted Error Value: White=0.18 (very
precise) /Black=0.46} 1-0

[Event "44th Chess Olympiad Women 2022"]
[Site "Chennai"]
[Date "2022.07.29"]
[Round "1.10"]
[White "Abdumalik, Zhansaya"]
[Black "Mazariegos, Silvia Carolina"]
[Result "1-0"]
[WhiteElo "2495"]
[BlackElo "1851"]
[Annotator "TA"]
[PlyCount "45"]
[EventDate "2022.??.??"]
[TimeControl "60"]

{[%evp 14,45,49,40,61,58,208,44,206,73,116,110,122,137,275,206,212,201,293,263,
564,535,839,443,978,964,983,981,1707,1719,1686,1641,1333,779]} 1. e4 {[%emt 0:
00:00][%cal Ye2e4,Ye4e5]} Nf6 {[%emt 0:00:05]} 2. e5 {[%emt 0:00:13]} Nd5 {
[%emt 0:00:06]} 3. d4 {[%emt 0:00:04]} Nb6 {[%emt 0:00:14]} 4. f4 {[%emt 0:01:
27][%cal Yf2f4,Yf4e5]} d6 {[%emt 0:00:11]} 5. c4 {[%emt 0:00:00]} dxe5 {
[%emt 0:00:08]} 6. fxe5 {[%emt 0:00:05]} Nc6 {[%emt 0:00:19]} 7. Be3 {[%emt 0:
00:30]} Bf5 {[%emt 0:00:10]} 8. Nc3 {[%emt 0:00:09]} Qd7 {[%emt 0:00:00] B03:
Alekhine's Defence: Four Pawns Attack.} 9. Nf3 {[%emt 0:03:25]} Bg4 {[%emt 0:
00:45]} (9... e6 $14) 10. Be2 $2 {[%emt 0:06:26]} (10. d5 $1 $18 {[%cal Rd5c6]}
) 10... Rd8 $2 {[%emt 0:00:39] [#]} (10... Bxf3 $14 11. gxf3 O-O-O) 11. O-O {
[%emt 0:04:09]} (11. d5 $1 $18 {[%cal Rd5c6]}) 11... Bxf3 {[%emt 0:00:00] [#]}
12. Bxf3 $146 {[%emt 0:00:53] aiming for c5.} ({Predecessor:} 12. Rxf3 Nxd4 13.
Bxd4 Qxd4+ 14. Qxd4 Rxd4 15. Raf1 e6 16. Rxf7 Rd7 17. R7f4 Bc5+ 18. Kh1 {
0-1 (60) Kock,S (2100)-Jugelt,T (2418) Hamburg 2013}) 12... e6 {[%emt 0:00:07]
[#]} 13. b3 $36 {[%emt 0:04:43] Bxc6 is the strong threat. White is in control.
White is more active.} Be7 {[%emt 0:05:31]} (13... Nxd4 $16 14. Bxb7 c5) 14. c5
{[%emt 0:02:41]} Nc8 {[%emt 0:01:21]} 15. Bxc6 {[%emt 0:00:49]} Qxc6 {[%emt 0:
09:19]} (15... bxc6 {was called for.} 16. Qg4 O-O) 16. Qg4 $18 {[%emt 0:00:58]}
h5 $2 {[%emt 0:19:50]} (16... O-O {is tougher.} 17. Bh6 g6 18. Bxf8 Rxf8) 17.
Qxg7 {[%emt 0:02:24] White is clearly winning.} Kd7 {[%emt 0:04:44]} 18. Qxf7 {
[%emt 0:00:11]} Rhg8 {[%emt 0:18:05]} (18... Rdf8 $142) 19. d5 {[%emt 0:01:38]}
exd5 {[%emt 0:01:27]} 20. Nxd5 {[%emt 0:00:00] Rad1 would kill now.} Rdf8 {
[%emt 0:03:51]} 21. Nf6+ {[%emt 0:00:21]} Kd8 {[%emt 0:00:24]} 22. Rad1+ {
[%emt 0:00:10]} Nd6 {[%emt 0:00:14]} 23. Qd5 {[%emt 0:00:07] Weighted Error
Value: White=0.73/Black=0.99} 1-0

[Event "44th Chess Olympiad Women 2022"]
[Site "Chennai"]
[Date "2022.07.29"]
[Round "1.10"]
[White "Balabayeva, Xeniya"]
[Black "Natareno, Elvia"]
[Result "1-0"]
[WhiteElo "2198"]
[BlackElo "1581"]
[Annotator "NA RC"]
[PlyCount "54"]
[EventDate "2022.??.??"]
[TimeControl "60"]

1. e4 {[%emt 0:00:03]} c5 {[%emt 0:00:15]} 2. Nf3 {[%emt 0:00:13]} Nc6 {
[%emt 0:00:43]} 3. Bb5 {[%emt 0:00:25]} g6 {[%emt 0:00:58]} 4. O-O {[%emt 0:00:
00]} Bg7 {[%emt 0:00:42]} 5. Re1 {[%emt 0:00:55]} d6 {[%emt 0:01:30]} 6. c3 {
[%emt 0:01:29]} Nf6 {[%emt 0:02:17]} 7. e5 {[%emt 0:04:20]} Nd5 {[%emt 0:03:22]
} 8. d4 {[%emt 0:03:25]} cxd4 {[%emt 0:01:22]} 9. Nxd4 {[%emt 0:01:15]} O-O {
[%emt 0:04:04]} 10. Nxc6 {[%emt 0:01:52]} bxc6 {[%emt 0:00:14]} 11. Bxc6 {
[%emt 0:00:57]} Nb6 {[%emt 0:00:40]} 12. exd6 {[%emt 0:02:18]} exd6 {[%emt 0:
00:00]} 13. Bxa8 {[%emt 0:00:14]} Nxa8 {[%emt 0:00:09]} 14. Be3 {[%emt 0:00:33]
} Nb6 {[%emt 0:04:37]} 15. Bd4 {[%emt 0:01:10]} f6 {[%emt 0:03:40]} 16. Nd2 {
[%emt 0:03:46]} Bb7 {[%emt 0:04:36]} 17. Nf1 {[%emt 0:06:48]} Qd7 {[%emt 0:00:
00]} 18. Bxb6 {[%emt 0:02:35]} axb6 {[%emt 0:00:10]} 19. Qb3+ {[%emt 0:00:06]}
Kh8 {[%emt 0:00:32]} 20. Qb4 {[%emt 0:02:58]} b5 21. Qxb5 {[%emt 0:00:30]} h5 {
[%emt 0:03:20]} 22. Qb6 {[%emt 0:02:05]} d5 {[%emt 0:02:25]} 23. Rad1 {[%emt 0:
00:00]} Rf7 {[%emt 0:02:07]} 24. Qb4 {[%emt 0:11:10]} Bf8 {[%emt 0:03:20]} 25.
Nd2 {[%emt 0:01:38]} Qb5 {[%emt 0:09:44]} 26. Qd4 {[%emt 0:02:01]} Qd7 {
[%emt 0:05:42]} 27. Nb3 {[%emt 0:00:33]} Bc5 {[%emt 0:00:43]} 1-0

[Event "44th Chess Olympiad Women 2022"]
[Site "Chennai"]
[Date "2022.07.29"]
[Round "1.10"]
[White "Juarez Garcia, Daniela"]
[Black "Assaubayeva, Bibisara"]
[Result "0-1"]
[WhiteElo "1725"]
[BlackElo "2436"]
[Annotator "ChessBase"]
[PlyCount "100"]
[EventDate "2022.??.??"]
[TimeControl "60"]

1. e4 {[%emt 0:00:03]} c5 {[%emt 0:00:18]} 2. c3 {[%emt 0:00:21]} Nf6 {[%emt 0:
00:00]} 3. e5 {[%emt 0:01:18]} Nd5 {[%emt 0:00:07]} 4. d4 {[%emt 0:00:57]} cxd4
{[%emt 0:00:17]} 5. cxd4 {[%emt 0:01:00]} d6 {[%emt 0:00:12]} 6. Nf3 {[%emt 0:
00:00]} Nc6 {[%emt 0:00:11]} 7. Nc3 {[%emt 0:00:31]} dxe5 {[%emt 0:03:10]} 8.
Nxe5 {[%emt 0:09:47]} Nxc3 {[%emt 0:21:35]} 9. bxc3 {[%emt 0:05:52]} Nxe5 {
[%emt 0:00:25]} 10. dxe5 {[%emt 0:00:25]} Qxd1+ {[%emt 0:00:31]} 11. Kxd1 {
[%emt 0:00:11]} Bd7 {[%emt 0:04:00]} 12. Be3 {[%emt 0:07:37]} Bc6 {[%emt 0:00:
00]} 13. f3 {[%emt 0:05:24]} e6 {[%emt 0:03:08]} 14. a4 {[%emt 0:02:19]} O-O-O+
{[%emt 0:03:10]} 15. Kc2 {[%emt 0:02:47]} a6 {[%emt 0:07:16]} 16. Bc4 {[%emt 0:
00:00]} Be7 {[%emt 0:00:47]} 17. Bb3 {[%emt 0:07:53]} g5 {[%emt 0:03:44]} 18.
Rhf1 {[%emt 0:04:53]} h5 {[%emt 0:03:05]} 19. Rae1 {[%emt 0:06:27]} Kd7 {
[%emt 0:07:33]} 20. Rd1+ {[%emt 0:01:21]} Ke8 {[%emt 0:00:42]} 21. Bb6 {
[%emt 0:00:33]} Rxd1 {[%emt 0:05:22]} 22. Kxd1 {[%emt 0:00:20]} Bd8 {[%emt 0:
00:00]} 23. Bd4 {[%emt 0:00:58]} g4 {[%emt 0:01:12]} 24. Ke2 {[%emt 0:01:29]}
Rg8 {[%emt 0:02:04]} 25. Rg1 {[%emt 0:05:12]} Bg5 {[%emt 0:03:02]} 26. h3 {
[%emt 0:03:46]} Bf4 {[%emt 0:02:11]} 27. fxg4 {[%emt 0:06:17]} hxg4 {[%emt 0:
00:00]} 28. g3 {[%emt 0:00:47]} gxh3 {[%emt 0:01:02]} 29. gxf4 {[%emt 0:00:20]}
Rh8 {[%emt 0:00:23]} 30. a5 {[%emt 0:03:55]} h2 {[%emt 0:04:26]} 31. Rf1 {
[%emt 0:01:00]} h1=Q {[%emt 0:00:50]} 32. Rxh1 {[%emt 0:00:06]} Rxh1 {[%emt 0:
00:00]} 33. Kd3 {[%emt 0:00:43]} Ra1 {[%emt 0:00:48]} 34. Bb6 {[%emt 0:00:17]}
Ba4 {[%emt 0:00:07]} 35. Bc4 {[%emt 0:00:29]} Bb5 {[%emt 0:00:15]} 36. Bxb5+ {
[%emt 0:00:36]} axb5 {[%emt 0:00:03]} 37. Kc2 {[%emt 0:00:42]} Ra4 {[%emt 0:00:
00]} 38. Bd4 {[%emt 0:00:22]} Rxa5 {[%emt 0:00:08]} 39. Kb2 {[%emt 0:00:18]}
Kd7 {[%emt 0:00:06]} 40. Kb3 {[%emt 0:00:07]} Kc6 {[%emt 0:00:06]} 41. c4 {
[%emt 0:30:58]} bxc4+ {[%emt 0:30:05]} 42. Kb4 {[%emt 0:00:11]} Rd5 {[%emt 0:
00:00]} 43. Kxc4 {[%emt 0:00:06]} b5+ {[%emt 0:00:22]} 44. Kc3 {[%emt 0:00:25]}
b4+ {[%emt 0:00:06]} 45. Kc4 {[%emt 0:00:06]} Rxd4+ {[%emt 0:00:05]} 46. Kxd4 {
[%emt 0:00:04]} Kb5 {[%emt 0:00:06]} 47. Ke3 {[%emt 0:01:01]} Kc4 {[%emt 0:00:
00]} 48. Ke4 {[%emt 0:00:25]} b3 {[%emt 0:00:04]} 49. f5 {[%emt 0:00:05]} b2 {
[%emt 0:00:04]} 50. fxe6 {[%emt 0:00:13]} b1=Q+ {[%emt 0:00:05]} 0-1

[Event "44th Chess Olympiad Women 2022"]
[Site "Chennai"]
[Date "2022.07.29"]
[Round "1.10"]
[White "Lopez L., Dairyn D."]
[Black "Nakhbayeva, Guliskhan"]
[Result "0-1"]
[WhiteElo "1574"]
[BlackElo "2329"]
[Annotator "TA"]
[PlyCount "98"]
[EventDate "2022.??.??"]
[TimeControl "60"]

{[%evp 9,98,-1,0,-2,-15,-14,0,0,0,0,0,-8,4,-22,-17,-50,-4,-48,-24,-51,-46,-89,
-24,-13,-11,-9,-10,-25,-16,-54,-33,-60,-19,-100,-99,-157,-138,-140,-109,-179,
-188,-309,-305,-310,-303,-294,-308,-604,-598,-653,-640,-662,-659,-845,-739,
-850,-839,-829,-826,-827,-844,-824,-831,-29977,-29978,-29978,-29979,-29978,
-29970,-2585,-1430,-1291,-1099,-29967,-29968,-29972,-4875,-29970,-29972,-29971,
-29971,-29968,-29958,-29986,-29987,-29987,-29988,-29989,-29990,-29990,-29991]} 
1. d4 {[%emt 0:00:04]} Nf6 {[%emt 0:00:12]} 2. Bf4 {[%emt 0:00:19]} d5 {
[%emt 0:00:06]} 3. e3 {[%emt 0:00:10]} c5 {[%emt 0:00:16]} 4. c3 {[%emt 0:00:
00]} Nc6 {[%emt 0:00:43]} 5. Nf3 {[%emt 0:01:18]} Nh5 {[%emt 0:01:23]} 6. Bg3 {
[%emt 0:01:45] D02:1 d4 d5 2 Nf3 sidelines, including 2...Nf6 3 g3 and 2...
Nf6 3 Bf4.} Nxg3 {[%emt 0:04:16]} 7. hxg3 {[%emt 0:04:15]} Qb6 {[%emt 0:07:57]}
8. Qb3 {[%emt 0:03:26] The position is equal.} e6 {[%emt 0:00:51]} 9. Nbd2 {
[%emt 0:01:18]} Bd7 {[%emt 0:03:03]} 10. Be2 {[%emt 0:05:02] [#]} Bd6 $146 {
[%emt 0:03:26]} ({Predecessor:} 10... Be7 11. Qc2 h6 12. a3 cxd4 13. exd4 Rc8
14. Qb3 Qc7 15. Qd1 O-O 16. Bd3 e5 17. dxe5 Nxe5 18. Nxe5 Qxe5+ {½-½ (99)
Rambaldi,F (2563)-Obregon,C (2514) Chess.com INT 2018}) 11. O-O {[%emt 0:11:29]
} O-O {[%emt 0:06:55]} 12. Rab1 {[%emt 0:08:21]} Qc7 {[%emt 0:06:05]} (12...
Qxb3 $15 13. axb3 cxd4 14. exd4 f6) 13. Qc2 {[%emt 0:00:38]} Rac8 {[%emt 0:00:
00]} 14. Ng5 {[%emt 0:12:50][%csl Gg5][%cal Rc2h7] [#]} g6 {[%emt 0:03:01]} 15.
Ndf3 {[%emt 0:07:23]} e5 {[%emt 0:07:57]} (15... h6 $17 16. Nh3 g5) 16. dxe5
$11 {[%emt 0:05:09]} Nxe5 {[%emt 0:00:19][%cal Yc6e5,Ye5d7,Yd7f6,Yf6e4,Ye4g3]}
17. Rbd1 {[%emt 0:00:37]} Bc6 {[%emt 0:05:47]} 18. Nh2 {[%emt 0:00:00]} Qe7 {
[%emt 0:03:28]} 19. Ngf3 {[%emt 0:02:33]} Rcd8 {[%emt 0:02:29]} 20. Rfe1 {
[%emt 0:09:22]} b5 {[%emt 0:02:57][%cal Yb7b5,Yb5b4]} 21. Nh4 {[%emt 0:01:40]}
(21. Nxe5 $11 {remains equal.} Bxe5 22. Nf3) 21... Nd7 $17 {[%emt 0:08:12]
Black continues to play with concentration.} 22. Qd2 {[%emt 0:00:00]} (22. N4f3
$142) 22... Nf6 {[%emt 0:00:36]} 23. Bd3 {[%emt 0:01:21]} b4 {[%emt 0:01:53]}
24. f4 {[%emt 0:04:35]} (24. N4f3 $17 {was necessary.}) 24... Rfe8 $19 {
[%emt 0:02:56] aiming for ...c4.} 25. N2f3 {[%emt 0:02:34]} (25. N4f3 {might
work better.}) 25... Ne4 {[%emt 0:02:04]} 26. Qc2 {[%emt 0:02:06]} bxc3 {
[%emt 0:01:21]} ({Don't blunder} 26... Nxg3 $2 27. c4 $19) 27. bxc3 {[%emt 0:
00:00]} Nxg3 {[%emt 0:00:34]} 28. f5 $2 {[%emt 0:00:59]} (28. c4 Bc7 29. Kh2)
28... Ne4 {[%emt 0:03:53]} 29. fxg6 {[%emt 0:02:31]} hxg6 {[%emt 0:00:06] ...
Bg3 is the strong threat.} 30. Rf1 {[%emt 0:00:42]} Bg3 {[%emt 0:00:55] [#]
And now ...c4 would win.} 31. Bxe4 {[%emt 0:01:01]} Qxe4 {[%emt 0:01:35]} 32.
Qxe4 {[%emt 0:00:39]} dxe4 {[%emt 0:01:20]} 33. Rxd8 {[%emt 0:00:16]} Rxd8 {
[%emt 0:00:02]} 34. Ng5 {[%emt 0:00:24]} Bxh4 {[%emt 0:01:48] A strong pair of
Bishops.} 35. Nxf7 {[%emt 0:00:05]} Rf8 {[%emt 0:00:23]} 36. Nd6 {[%emt 0:00:
00]} Rxf1+ {[%emt 0:00:21]} 37. Kxf1 {[%emt 0:00:04]} Bg3 {[%emt 0:00:32]} 38.
Nc8 {[%emt 0:00:35]} Bb5+ {[%emt 0:00:21]} 39. Kg1 {[%emt 0:00:09]} a5 {
[%emt 0:01:11]} 40. Nb6 {[%emt 0:00:22]} Kf7 {[%emt 0:01:38]} 41. a4 {[%emt 0:
00:00]} Bc6 {[%emt 0:31:20]} 42. Nc4 {[%emt 0:00:13]} Bc7 {[%emt 0:00:08]} (
42... Bxa4 $142 43. Nxa5 Ke6 44. Nc4 Bc2 45. Nb6 Bb3 46. c4 Be1 47. Nd5 Bxc4
48. Nf4+ Kf5 49. Kh1 Bd2 50. g4+ Kg5 51. Kh2 Kxg4 52. Nxg6 Bd3 53. Ne5+ Kf5 54.
Nc6 Bxe3 55. Kg2 Bg5 56. Na5 e3 57. Nb3 e2 58. Kf2 Bc4 59. Ke1 Bh4+ 60. Kd2
e1=Q+ 61. Kc2 Qe2+ 62. Nd2 Bf6 63. Kc1 Bd3 64. Nb3 Qe1#) 43. Nb2 {[%emt 0:00:
00]} Be5 {[%emt 0:00:05] Black mates.} 44. Nc4 {[%emt 0:00:55]} Bxc3 {[%emt 0:
00:00]} 45. Kf2 {[%emt 0:00:08]} Ke6 {[%emt 0:00:20]} 46. g4 {[%emt 0:00:14]}
Bxa4 {[%emt 0:00:13]} 47. Kg3 {[%emt 0:00:27]} g5 {[%emt 0:00:21]} 48. Nb6 {
[%emt 0:00:21]} Bb3 {[%emt 0:00:45]} 49. Kf2 {[%emt 0:00:39]} a4 {[%emt 0:00:
00] Weighted Error Value: White=0.78/Black=0.20 (precise)} 0-1

[Event "44th Chess Olympiad Women 2022"]
[Site "Chennai"]
[Date "2022.07.29"]
[Round "1.11"]
[White "Divya Deshmukh"]
[Black "Bagga, Khushi"]
[Result "1-0"]
[WhiteElo "2319"]
[BlackElo "1328"]
[Annotator "ChessBase"]
[PlyCount "67"]
[EventDate "2022.??.??"]
[TimeControl "60"]

1. e4 {[%emt 0:00:08]} e5 {[%emt 0:00:04]} 2. Nf3 {[%emt 0:00:06]} Nc6 {
[%emt 0:00:19]} 3. Bb5 {[%emt 0:00:06]} Nd4 {[%emt 0:00:14]} 4. Nxd4 {[%emt 0:
00:00]} exd4 {[%emt 0:00:06]} 5. O-O {[%emt 0:00:32]} c6 {[%emt 0:01:59]} 6.
Bc4 {[%emt 0:01:28]} d5 {[%emt 0:02:02]} 7. exd5 {[%emt 0:01:52]} cxd5 {
[%emt 0:00:16]} 8. Bb5+ {[%emt 0:02:58]} Bd7 {[%emt 0:00:37]} 9. Qe2+ {[%emt 0:
00:00]} Ne7 {[%emt 0:04:13]} 10. Re1 {[%emt 0:15:11]} Bxb5 {[%emt 0:01:40]} 11.
Qxb5+ {[%emt 0:02:40]} Qd7 {[%emt 0:00:14]} 12. Qd3 {[%emt 0:01:03]} O-O-O {
[%emt 0:06:28]} 13. b4 {[%emt 0:14:55]} Qc7 {[%emt 0:15:03]} 14. Bb2 {[%emt 0:
00:00]} Nc6 {[%emt 0:09:20]} 15. b5 {[%emt 0:06:48]} Nb4 {[%emt 0:10:38]} 16.
Qb3 {[%emt 0:01:58]} Qc4 {[%emt 0:03:13]} 17. Qh3+ {[%emt 0:00:19]} Kb8 {
[%emt 0:01:21]} 18. Na3 {[%emt 0:00:05]} Qc7 {[%emt 0:03:58]} 19. c3 {[%emt 0:
00:00]} dxc3 {[%emt 0:03:05]} 20. dxc3 {[%emt 0:00:12]} Nc6 {[%emt 0:00:21]}
21. bxc6 {[%emt 0:00:09]} Qxc6 {[%emt 0:00:37]} 22. Nc2 {[%emt 0:00:29]} Bc5 {
[%emt 0:02:10]} 23. Nd4 {[%emt 0:00:57]} Qf6 {[%emt 0:00:20]} 24. Re2 {[%emt 0:
00:00]} h5 {[%emt 0:03:49]} 25. Nb3 {[%emt 0:01:42]} Bb6 {[%emt 0:05:33]} 26.
c4 {[%emt 0:00:00]} Qc6 {[%emt 0:01:35]} 27. c5 {[%emt 0:02:35]} Bc7 {[%emt 0:
00:00]} 28. Bxg7 {[%emt 0:01:01]} Rhg8 {[%emt 0:02:20]} 29. Be5 {[%emt 0:00:23]
} Bxe5 {[%emt 0:03:02]} 30. Rxe5 {[%emt 0:00:03]} d4 {[%emt 0:08:33]} 31. Re7 {
[%emt 0:02:15]} Qf6 {[%emt 0:03:13]} 32. Rae1 {[%emt 0:01:54]} Qa6 {[%emt 0:00:
00]} 33. c6 {[%emt 0:00:42]} Qxc6 {[%emt 0:02:53]} 34. Na5 {[%emt 0:00:28]} 1-0

[Event "44th Chess Olympiad Women 2022"]
[Site "Chennai"]
[Date "2022.07.29"]
[Round "1.11"]
[White "Ray, Hiya"]
[Black "Gomes, Mary Ann"]
[Result "0-1"]
[WhiteElo "1586"]
[BlackElo "2324"]
[Annotator "ChessBase"]
[PlyCount "58"]
[EventDate "2022.??.??"]
[TimeControl "60"]

1. d4 {[%emt 0:00:03]} Nf6 {[%emt 0:00:34]} 2. c4 {[%emt 0:00:29]} e6 {[%emt 0:
00:00]} 3. Nf3 {[%emt 0:00:25]} Bb4+ {[%emt 0:00:13]} 4. Bd2 {[%emt 0:00:53]}
Qe7 {[%emt 0:00:10]} 5. g3 {[%emt 0:00:46]} Bxd2+ {[%emt 0:01:51]} 6. Qxd2 {
[%emt 0:00:18]} b6 {[%emt 0:01:18]} 7. Nc3 {[%emt 0:01:40]} Bb7 {[%emt 0:00:17]
} 8. d5 {[%emt 0:01:08]} Na6 {[%emt 0:01:55]} 9. Bg2 {[%emt 0:00:48]} Nc5 {
[%emt 0:01:28]} 10. Nd4 {[%emt 0:02:20]} a5 {[%emt 0:03:08]} 11. O-O {[%emt 0:
00:00]} O-O {[%emt 0:00:32]} 12. e4 {[%emt 0:02:32]} d6 {[%emt 0:03:04]} 13.
Rfe1 {[%emt 0:02:55]} Nfd7 {[%emt 0:03:27]} 14. f4 {[%emt 0:12:03]} e5 {
[%emt 0:11:31]} 15. Nf5 {[%emt 0:13:50]} Qd8 {[%emt 0:07:52]} 16. Re2 {[%emt 0:
00:00]} exf4 {[%emt 0:06:01]} 17. gxf4 {[%emt 0:00:18]} Ba6 {[%emt 0:09:52]}
18. e5 {[%emt 0:12:46]} Bxc4 {[%emt 0:06:58]} 19. e6 {[%emt 0:06:21]} fxe6 {
[%emt 0:09:04]} 20. dxe6 {[%emt 0:00:10]} Bxe6 {[%emt 0:03:01]} 21. Rxe6 {
[%emt 0:12:18]} Rxf5 {[%emt 0:01:01]} 22. Bxa8 {[%emt 0:03:51]} Qxa8 {[%emt 0:
00:00]} 23. Re7 {[%emt 0:08:28]} Qf8 {[%emt 0:05:15]} 24. Rae1 {[%emt 0:01:02]}
Ne5 {[%emt 0:00:38]} 25. Qd5+ {[%emt 0:03:36]} Kh8 {[%emt 0:00:28]} 26. R7xe5 {
[%emt 0:01:23]} dxe5 {[%emt 0:00:07]} 27. fxe5 {[%emt 0:00:26]} Ne6 {[%emt 0:
00:00]} 28. Ne4 {[%emt 0:01:27]} Nf4 {[%emt 0:00:33]} 29. Qd4 {[%emt 0:00:57]}
Ne2+ {[%emt 0:00:17]} 0-1